bitfinex-derivatives/quotes_SOLF0:USTF0_20240908
["timestamp","ask_amount","ask_price","bid_price","bid_amount"]
[1725760908772,3.9063,128.01,127.99,161.27648307]
[1725760910054,3.9064,128.0,127.99,161.27648307]
[1725760918166,8.39,128.05,127.99,161.27648307]
[1725760918370,3.97765268,128.05,127.99,169.66648307]
[1725760918770,3.9057,128.03,127.99,173.57298307]
[1725760920273,3.9058,128.02,127.99,173.57298307]
[1725760922272,3.97765268,128.05,127.99,169.66648307]
[1725760922576,1.3944,128.06,128.01,8.39]
[1725760923173,3.9054,128.04,128.01,12.2961]
[1725760923477,1.3944,128.06,128.02,8.39]
[1725760923771,3.9051,128.05,128.02,12.2957]
[1725760925778,3.9051,128.05,128.02,3.9057]
[1725760926576,3.9051,128.05,128.01,12.296]
[1725760926768,8.39,128.05,127.99,162.67938307]
[1725760927270,3.9058,128.02,127.99,166.58598307]
[1725760927467,3.9058,128.02,127.99,174.97598307]
[1725760927664,3.9056,128.03,128.0,3.9063]
[1725760929074,3.9054,128.04,128.01,12.2961]
[1725760930383,3.9051,128.05,128.01,12.2961]
[1725760931271,3.9051,128.05,128.02,3.9058]
[1725760934373,123.39878336,128.08,128.04,8.39]
[1725760934975,3.9043,128.07,128.04,12.295]
[1725760935673,3.9043,128.07,128.04,3.905]
[1725760938384,3.9038,128.09,128.05,16.14673737]
[1725760939386,3.9034,128.1,128.06,12.2945]
[1725760942278,3.9034,128.1,128.07,3.904]
[1725760942486,3.9034,128.1,128.07,12.294]
[1725760943078,9.8013,128.12,128.05,3.85203737]
[1725760943280,9.8013,128.12,128.04,8.39]
[1725760943281,8.39,128.1,128.04,8.39]
[1725760943480,3.9039,128.09,128.05,7.74120296]
[1725760944584,3.9039,128.09,128.06,3.9046]
[1725760944781,3.9039,128.09,128.06,12.2946]
[1725760945287,3.9039,128.09,128.06,16.10883859]
[1725760949888,3.9032,128.11,128.08,3.904]
[1725760950487,3.9032,128.11,128.07,12.2941]
[1725760950889,3.9034,128.1,128.07,12.2941]
[1725760953590,3.9037,128.09,128.06,3.9045]
[1725760954397,3.9034,128.1,128.07,3.9042]
[1725760955391,3.9037,128.09,128.06,3.9045]
[1725760956292,3.904,128.08,128.05,12.2948]
[1725760957687,3.9043,128.07,128.04,3.905]
[1725760957894,3.9043,128.07,128.04,12.295]
[1725760958097,8.39,128.11,128.04,8.39]
[1725760958293,3.9042,128.08,128.05,3.9048]
[1725760963106,3.9042,128.08,128.05,7.90535624]
[1725760964216,3.9042,128.08,128.05,3.9048]
[1725760964510,3.9042,128.08,128.05,16.29769985]
[1725760964706,3.9042,128.08,128.05,12.2948]
[1725760965207,3.9042,128.08,128.05,16.10669497]
[1725760968524,3.9042,128.08,128.05,12.2948]
[1725760970414,3.9038,128.09,128.06,3.9045]
[1725760981028,8.39,128.11,128.05,16.27775084]
[1725760981223,8.39,128.11,128.05,7.88775084]
[1725760981626,3.9038,128.09,128.05,7.88775084]
[1725760983625,3.9038,128.09,128.05,16.27775084]
[1725760985330,8.39,128.11,128.05,16.27775084]
[1725760987438,3.904,128.08,128.05,16.27775084]
[1725760990936,3.904,128.08,128.06,3.9046]
[1725760998339,3.9038,128.09,128.06,3.9046]
[1725761008945,3.9038,128.09,128.0,1.3068]
[1725761008946,8.39,128.09,128.0,1.3068]
[1725761009150,1.3118,128.08,128.02,8.39]
[1725761009348,3.9046,128.06,128.03,3.9053]
[1725761011352,3.9045,128.07,128.04,8.39]
[1725761011557,1.3118,128.08,128.04,8.39]
[1725761012359,3.9046,128.06,128.04,12.2952]
[1725761013153,3.9046,128.06,128.0,1.3068]
[1725761013154,1.3118,128.08,128.05,16.2577773]
[1725761013961,5.2159,128.08,128.05,16.2577773]
[1725761027371,3.9041,128.08,128.06,3.9045]
[1725761027671,3.9038,128.09,128.06,3.9045]
[1725761027867,3.9038,128.09,128.06,12.2945]
[1725761028569,4.1484,128.12,128.06,8.39]
[1725761028767,4.1484,128.12,128.07,4.18307142]
[1725761028966,3.9033,128.11,128.06,8.39]
[1725761029561,3.9033,128.11,128.07,8.08718101]
[1725761029763,3.9033,128.11,128.07,8.39]
[1725761029969,3.9033,128.11,128.08,4.18231771]
[1725761030170,3.9033,128.11,128.07,8.39]
[1725761030474,3.9033,128.11,128.08,3.9038]
[1725761036483,3.9033,128.11,128.07,8.39]
[1725761036484,3.9034,128.1,128.07,3.9041]
[1725761038278,12.2933,128.11,128.07,3.9041]
[1725761038580,3.9033,128.11,128.07,3.9041]
[1725761041481,3.9033,128.11,128.08,3.9039]
[1725761041686,3.9034,128.1,128.06,8.39]
[1725761043378,3.9034,128.1,128.07,3.9041]
[1725761044981,2.7616,128.12,128.07,3.9041]
[1725761044982,3.9032,128.11,128.07,3.9041]
[1725761045473,3.9032,128.11,128.07,12.2941]
[1725761046086,3.9032,128.11,128.08,3.9038]
[1725761047283,2.7616,128.12,128.08,3.9038]
[1725761047284,6.6644,128.12,128.09,3.9034]
[1725761048078,105.7017189,128.15,128.09,8.39]
[1725761049180,3.9026,128.13,128.1,3.9032]
[1725761050986,3.9026,128.13,128.09,12.2935]
[1725761051181,3.9026,128.13,128.09,3.9035]
[1725761051588,3.9026,128.13,128.09,12.2935]
[1725761051788,3.9026,128.13,128.1,3.9033]
[1725761056788,3.9026,128.13,128.09,3.9035]
[1725761061487,3.9026,128.13,128.1,3.9033]
[1725761066397,3.9028,128.12,128.09,3.9035]
[1725761066592,8.39,128.13,128.05,3.9629773]
[1725761066786,8.39,128.13,128.06,8.39]
[1725761066991,8.39,128.13,128.07,3.90402936]
[1725761067190,3.9029,128.12,128.08,3.9037]
[1725761069294,3.9036,128.1,128.07,7.80812936]
[1725761069494,8.39,128.13,128.07,7.80812936]
[1725761069495,8.39,128.13,128.07,3.90402936]
[1725761069697,8.39,128.13,128.07,8.39]
[1725761070002,3.9032,128.11,128.08,3.9038]
[1725761071398,2.7781,128.14,128.08,8.39]
[1725761071600,2.7781,128.14,128.1,8.39]
[1725761072691,3.9026,128.13,128.1,12.2932]
[1725761086602,3.9026,128.13,128.1,3.9032]
[1725761088321,15.11672625,128.14,128.09,3.9034]
[1725761088512,11.1681,128.14,128.09,3.9034]
[1725761089115,3.9026,128.13,128.09,3.9034]
[1725761089317,2.7781,128.14,128.1,8.39]
[1725761090217,6.6803,128.14,128.11,3.9029]
[1725761090439,5.2785,128.14,128.11,3.9029]
[1725761096220,114.43774424,128.17,128.12,8.39]
[1725761096422,9.7613,128.19,128.13,8.39]
[1725761096717,0.2869773,128.18,128.13,8.39]
[1725761097313,0.28697619,128.17,128.13,12.2923]
[1725761097522,9.7613,128.19,128.13,12.2923]
[1725761097913,3.9015,128.17,128.13,12.2923]
[1725761098622,3.9015,128.17,128.14,3.9021]
[1725761099117,3.9015,128.17,128.14,7.77065046]
[1725761103009,3.901,128.18,128.14,7.77065046]
[1725761103316,1.3713,128.19,128.13,8.39]
[1725761103524,9.7613,128.19,128.13,8.39]
[1725761103712,3.9014,128.17,128.14,3.81351065]
[1725761104220,3.9014,128.17,128.13,12.2923]
[1725761104422,3.9015,128.16,128.13,3.9023]
[1725761110721,8.39,128.15,128.11,3.9029]
[1725761112026,1.3713,128.19,128.11,3.9029]
[1725761112218,8.39,128.17,128.11,3.9029]
[1725761112421,12.23846592,128.17,128.11,3.9029]
[1725761112821,3.9022,128.14,128.11,3.9029]
[1725761119329,1.3383,128.15,128.11,8.39]
[1725761119921,5.2403,128.15,128.12,3.9025]
[1725761124442,3.97603778,128.18,128.13,12.2924]
[1725761124734,1.3945,128.2,128.14,8.39]
[1725761124735,1.2905,128.19,128.14,8.39]
[1725761124941,1.2905,128.19,128.08,1.3532]
[1725761124942,1.2905,128.19,128.16,3.9015]
[1725761125334,1.2905,128.19,128.17,8.39]
[1725761125542,1.2905,128.19,128.16,7.79797829]
[1725761125741,1.2905,128.19,128.16,16.18797829]
[1725761126343,5.1912,128.19,128.15,12.2918]
[1725761126543,5.1912,128.19,128.15,7.82950946]
[1725761126747,5.1912,128.19,128.15,16.21950946]
[1725761130054,3.9009,128.18,128.15,16.21950946]
[1725761130749,5.1912,128.19,128.15,16.21950946]
[1725761133253,5.1912,128.19,128.16,3.9014]
[1725761134254,5.1912,128.19,128.15,12.31770946]
[1725761134446,5.1912,128.19,128.15,7.82940946]
[1725761134650,5.1912,128.19,128.15,12.2917]
[1725761134851,5.1912,128.19,128.15,16.19437696]
[1725761135759,5.1912,128.19,128.15,12.2917]
[1725761135954,5.1912,128.19,128.15,16.13973949]
[1725761136153,5.1912,128.19,128.15,12.2917]
[1725761136953,5.1912,128.19,128.15,16.16939983]
[1725761138372,5.1912,128.19,128.15,12.2917]
[1725761138753,5.1912,128.19,128.15,16.1057862]
[1725761140462,5.1912,128.19,128.16,3.9015]
[1725761152168,1.3177,128.24,128.17,12.2911]
[1725761152368,2.91040028,128.23,128.17,12.2911]
[1725761152561,0.28690019,128.22,128.17,12.2911]
[1725761152767,6.4399278,128.23,128.17,12.2911]
[1725761154275,3.9003,128.21,128.17,12.2911]
[1725761155073,3.9003,128.2,128.17,12.2911]
[1725761160164,6.4399278,128.23,128.16,12.2914]
[1725761161067,8.39,128.22,128.13,1.3114]
[1725761161367,8.39,128.19,128.13,13.68477496]
[1725761161574,3.9014,128.17,128.13,13.68477496]
[1725761161773,3.9014,128.17,128.13,17.58707496]
[1725761167476,3.9016,128.16,128.13,17.58707496]
[1725761176179,8.39,128.19,128.13,12.37337496]
[1725761176381,8.39,128.14,128.04,1.333]
[1725761176687,8.39,128.12,128.05,8.39]
[1725761176886,3.9034,128.1,128.06,3.95980265]
[1725761177384,3.9034,128.1,128.06,7.86430265]
[1725761178674,3.9037,128.09,128.06,7.86430265]
[1725761181885,1.3068,128.13,128.07,8.39]
[1725761182090,3.98164779,128.15,128.1,8.39]
[1725761182391,3.9026,128.13,128.1,8.39]
[1725761183283,1.2864,128.16,128.1,8.39]
[1725761183988,3.902,128.15,128.11,3.9029]
[1725761185583,3.9022,128.14,128.11,3.9029]
[1725761187591,3.9026,128.13,128.09,8.39]
[1725761187988,3.9026,128.13,128.09,12.2935]
[1725761188193,3.9026,128.13,128.09,8.39]
[1725761188582,3.9026,128.13,128.09,3.9035]
[1725761188788,3.9026,128.13,128.1,3.91122806]
[1725761189395,3.9026,128.13,128.1,7.81452806]
[1725761190496,3.9026,128.13,128.1,3.9033]
[1725761192390,3.9026,128.13,128.06,4.18714702]
[1725761192391,8.39,128.13,128.06,4.18714702]
[1725761192592,8.39,128.13,128.07,3.81401346]
[1725761192900,8.39,128.13,128.06,8.39]
[1725761193292,8.39,128.13,128.07,3.96416336]
[1725761194207,8.39,128.13,128.06,8.39]
[1725761194390,3.9031,128.11,128.08,3.904]
[1725761196103,3.9031,128.11,128.07,7.89921136]
[1725761196301,3.9033,128.1,128.07,7.89921136]
[1725761196802,5.1803,128.11,128.07,7.89921136]
[1725761199711,3.9034,128.1,128.07,7.89921136]
[1725761210922,3.904,128.08,128.07,3.99501136]
[1725761211223,3.904,128.08,128.04,1.333]
[1725761211224,1.2771,128.11,128.05,8.39]
[1725761211420,1.2771,128.11,128.05,12.25021085]
[1725761212320,3.9035,128.1,128.07,3.9043]
[1725761215827,5.1803,128.11,128.07,3.9043]
[1725761226140,3.9028,128.12,128.07,8.39]
[1725761226747,3.9028,128.12,128.08,3.9037]
[1725761230145,3.9028,128.12,128.09,3.9036]
[1725761231946,3.9031,128.11,128.05,3.86021085]
[1725761232146,3.9031,128.11,128.05,8.39]
[1725761232348,3.9031,128.11,128.05,12.2981537]
[1725761232548,3.9031,128.11,128.07,3.904]
[1725761234746,8.39,128.09,128.05,3.9081537]
[1725761235350,12.2938,128.09,128.05,7.8128537]
[1725761238154,8.39,128.08,128.0,1.3104]
[1725761238352,8.39,128.07,128.0,9.7004]
[1725761238558,8.39,128.07,127.94,11.74864826]
[1725761238559,8.39,128.05,127.98,484.51670922]
[1725761238759,8.39,128.05,127.99,4.19019665]
[1725761238962,3.9053,128.04,128.0,3.9064]
[1725761239855,3.9053,128.04,127.98,484.51670922]
[1725761240247,8.39,128.04,127.99,4.19040784]
[1725761240458,8.39,128.04,127.98,476.12670922]
[1725761240750,8.39,128.04,127.99,3.9066]
[1725761240951,3.9058,128.03,127.99,3.9066]
[1725761241148,8.39,128.04,127.98,3.907]
[1725761241850,3.906,128.02,127.98,3.907]
[1725761243362,3.906,128.02,127.98,8.0977303]
[1725761243558,3.906,128.02,127.98,3.907]
[1725761244263,3.9057,128.03,127.99,8.39]
[1725761244460,11.1094,128.05,127.99,8.39]
[1725761245158,3.9053,128.04,128.0,3.9062]
[1725761248867,1.282,128.06,128.0,8.39]
[1725761249069,2.6683,128.1,128.03,8.39]
[1725761249262,2.6683,128.1,127.97,152.26245668]
[1725761249263,2.6683,128.1,128.05,8.39]
[1725761249460,1.2775,128.1,128.06,3.94740954]
[1725761249659,1.2775,128.1,128.07,8.39]
[1725761249864,8.39,128.13,128.07,12.30458935]
[1725761250273,2.6759,128.14,128.07,12.30458935]
[1725761250468,11.0659,128.14,128.07,12.30458935]
[1725761252361,3.9025,128.13,128.09,3.9035]
[1725761257168,2.6759,128.14,128.09,8.39]
[1725761257169,1.2851,128.14,128.09,8.39]
[1725761257376,1.2851,128.14,128.11,8.39]
[1725761258266,1.2851,128.14,128.11,12.2928]
[1725761264972,1.2851,128.14,128.12,3.9027]
[1725761266467,3.902,128.15,128.12,3.9027]
[1725761268369,13.6487,128.16,128.12,3.9027]
[1725761276685,5.2587,128.16,128.13,3.9024]
[1725761284186,1.3602,128.18,128.12,8.39]
[1725761284394,1.3602,128.18,128.15,8.39]
[1725761284691,9.6881,128.22,128.15,8.39]
[1725761284692,3.9003,128.2,128.16,3.9013]
[1725761286893,3.9003,128.2,128.11,155.61303865]
[1725761286894,8.39,128.2,128.11,155.61303865]
[1725761287091,8.39,128.19,128.11,155.61303865]
[1725761287296,3.901,128.18,128.12,8.39]
[1725761287594,3.901,128.18,128.14,3.902]
[1725761295188,3.901,128.18,128.13,8.39]
[1725761295189,3.9005,128.2,128.13,8.39]
[1725761295396,8.39,128.21,128.13,8.39]
[1725761295594,0.28688441,128.2,128.13,8.39]
[1725761296298,3.901,128.18,128.15,3.9017]
[1725761297000,3.9004,128.2,128.16,12.2913]
[1725761299587,3.9004,128.2,128.17,3.9012]
[1725761305396,3.9002,128.21,128.17,3.9012]
[1725761307701,7.8512,128.22,128.18,12.2908]
[1725761307906,5.1911,128.22,128.18,12.2908]
[1725761308109,5.1911,128.22,128.18,16.25982247]
[1725761309810,3.9,128.21,128.18,16.25982247]
[1725761310108,3.9,128.21,128.18,12.2908]
[1725761310405,3.9,128.21,128.18,16.18614813]
[1725761310608,3.9,128.21,128.18,12.2908]
[1725761322124,3.9,128.21,128.17,7.80464311]
[1725761322321,3.9,128.21,128.17,3.9011]
[1725761323026,3.9003,128.2,128.17,7.77684849]
[1725761323427,3.9003,128.2,128.17,3.9011]
[1725761329328,3.9003,128.2,128.16,3.9014]
[1725761329627,3.9003,128.2,128.16,12.2914]
[1725761330326,3.9003,128.2,128.17,3.9012]
[1725761332037,3.9003,128.2,128.16,12.2914]
[1725761338242,3.9003,128.2,128.16,3.9014]
[1725761338438,3.9003,128.2,128.16,12.2914]
[1725761339929,3.9001,128.21,128.18,8.39]
[1725761340527,3.9001,128.21,128.18,12.2908]
[1725761340734,6.5247,128.22,128.18,12.2908]
[1725761371158,5.191,128.22,128.19,3.9006]
[1725761373048,8.39,128.21,128.12,4.17187546]
[1725761373253,8.39,128.21,128.14,8.39]
[1725761373654,3.9005,128.2,128.16,12.2914]
[1725761373963,3.9005,128.2,128.17,8.39]
[1725761374762,1.2913,128.22,128.19,8.39]
[1725761374957,107.29520125,128.25,128.19,8.39]
[1725761375155,3.8993,128.24,128.2,3.9001]
[1725761376760,0.28679609,128.23,128.2,3.9001]
[1725761376959,3.8995,128.23,128.19,12.2904]
[1725761382177,3.8995,128.23,128.2,3.9003]
[1725761383472,1.2988,128.24,128.19,8.39]
[1725761383667,1.3136,128.27,128.23,8.39]
[1725761383868,0.28675014,128.26,128.23,8.39]
[1725761384771,1.3136,128.27,128.23,8.39]
[1725761385371,3.8985,128.26,128.23,12.2892]
[1725761387278,5.2119,128.27,128.23,12.2892]
[1725761393174,3.8985,128.26,128.23,12.2892]
[1725761394678,3.8985,128.26,128.22,3.8996]
[1725761398978,9.7036,128.27,128.21,8.39]
[1725761399683,1.3136,128.27,128.21,8.39]
[1725761399877,9.7036,128.27,128.21,8.39]
[1725761401382,3.8991,128.24,128.21,8.39]
[1725761403083,3.8991,128.24,128.2,3.9001]
[1725761403285,3.8991,128.24,128.21,8.39]
[1725761403786,3.8991,128.24,128.2,3.9001]
[1725761403986,8.39,128.23,128.17,3.84023413]
[1725761404292,8.39,128.23,128.13,4.16873697]
[1725761404293,8.39,128.22,128.13,4.16873697]
[1725761404488,3.93392104,128.21,128.15,8.39]
[1725761404694,3.9005,128.2,128.17,8.39]
[1725761405885,3.9008,128.19,128.12,1.3109]
[1725761406086,3.9008,128.19,128.16,8.39]
[1725761406985,3.9005,128.2,128.16,8.39]
[1725761408192,3.9005,128.2,128.16,12.2915]
[1725761409292,3.9005,128.2,128.17,8.39]
[1725761410992,3.9005,128.2,128.17,12.2912]
[1725761420096,1.3844,128.23,128.18,3.9009]
[1725761420290,1.3844,128.23,128.18,12.2909]
[1725761421298,3.8998,128.22,128.18,12.2909]
[1725761421995,3.8998,128.22,128.19,3.9006]
[1725761422191,1.3844,128.23,128.19,3.9006]
[1725761422192,5.2839,128.23,128.19,3.9006]
[1725761422892,5.2839,128.23,128.2,3.9003]
[1725761423291,5.2839,128.23,128.2,12.2903]
[1725761429601,5.2839,128.23,128.19,3.9005]
[1725761430305,5.2839,128.23,128.19,7.78635472]
[1725761433210,1.3844,128.23,128.18,3.9009]
[1725761433508,9.7744,128.23,128.18,3.9009]
[1725761433801,3.8999,128.22,128.18,3.9009]
[1725761436193,9.7744,128.23,128.18,3.9009]
[1725761436194,3.9,128.21,128.18,3.9009]
[1725761436394,3.86196941,128.21,128.17,3.90254377]
[1725761436603,8.39,128.22,128.13,4.16792895]
[1725761436807,3.9003,128.2,128.15,8.39]
[1725761437108,7.72754719,128.2,128.15,12.2916]
[1725761438004,3.9007,128.19,128.15,12.2916]
[1725761441207,3.9009,128.18,128.15,3.9016]
[1725761441507,3.9009,128.18,128.15,12.2916]
[1725761448409,12.21724719,128.2,128.13,3.9024]
[1725761448604,2.635,128.22,128.13,3.9024]
[1725761448605,9.7094,128.19,128.13,3.9024]
[1725761448806,3.9331148,128.18,128.13,3.9024]
[1725761449305,3.9017,128.16,128.13,3.9024]
[1725761454009,8.39,128.16,128.1,12.34205844]
[1725761454316,1.3449,128.15,128.05,1.3941]
[1725761454618,1.3449,128.15,128.09,12.2935]
[1725761454619,3.9027,128.13,128.09,12.2935]
[1725761454916,9.7349,128.15,128.09,12.2935]
[1725761455915,3.9026,128.13,128.09,12.2935]
[1725761456121,9.7349,128.15,128.09,8.39]
[1725761457512,9.7349,128.15,128.08,3.91200811]
[1725761457712,9.7349,128.15,128.08,8.39]
[1725761458114,3.9029,128.12,128.08,16.11396803]
[1725761460717,3.9021,128.14,128.09,8.39]
[1725761460936,1.3449,128.15,128.12,8.39]
[1725761461212,3.9021,128.14,128.1,12.2932]
[1725761461612,3.9021,128.14,128.1,8.39]
[1725761462509,1.3449,128.15,128.11,8.39]
[1725761463116,247.51999999,128.22,128.11,8.39]
[1725761463316,8.39,128.2,128.13,8.39]
[1725761463522,3.87942897,128.19,128.13,8.39]
[1725761463717,3.9011,128.18,128.14,3.9019]
[1725761473726,3.9011,128.18,128.15,3.9018]
[1725761478930,3.97979064,128.2,128.1,1.3936]
[1725761478931,12.2914,128.17,128.1,9.7836]
[1725761479128,8.39,128.16,128.1,9.7836]
[1725761479535,8.39,128.16,128.12,3.9026]
[1725761480028,8.39,128.16,128.11,3.9029]
[1725761480427,3.902,128.15,128.11,3.9029]
[1725761483742,1.3846,128.17,128.11,8.39]
[1725761483940,1.3846,128.17,128.12,8.39]
[1725761484334,5.30949276,128.17,128.12,8.39]
[1725761484840,5.2861,128.17,128.13,3.9023]
[1725761485039,5.2861,128.17,128.12,8.39]
[1725761485343,1.3846,128.17,128.14,3.902]
[1725761492551,3.9295778,128.18,128.13,8.39]
[1725761493156,3.9295778,128.18,128.15,3.9016]
[1725761496953,12.2907,128.19,128.15,3.9016]
[1725761497352,2.72,128.21,128.09,5.30914193]
[1725761497353,2.72,128.21,128.16,8.39]
[1725761497555,9.7402,128.23,128.16,8.39]
[1725761497853,3.8999,128.22,128.18,3.9007]
[1725761498055,7.79850229,128.22,128.18,3.9007]
[1725761499543,7.79850229,128.22,128.19,3.9006]
[1725761499752,3.8999,128.22,128.19,3.9006]
[1725761499950,3.92118802,128.22,128.19,3.9006]
[1725761500151,13.6397,128.23,128.19,3.9006]
[1725761500543,17.50547865,128.23,128.19,3.9006]
[1725761513662,17.50547865,128.23,128.2,3.9003]
[1725761513965,17.50547865,128.23,128.18,8.39]
[1725761514160,17.50547865,128.23,128.19,3.9004]
[1725761520369,3.8997,128.22,128.19,3.9004]
[1725761524362,1.3502,128.23,128.2,3.9003]
[1725761524971,3.81506047,128.22,128.2,3.9003]
[1725761527676,3.81506047,128.22,128.19,3.9004]
[1725761527978,3.81506047,128.22,128.12,4.16853229]
[1725761528168,3.81506047,128.22,128.16,8.39]
[1725761528367,3.81506047,128.22,128.18,3.9008]
[1725761528368,7.71486047,128.22,128.18,3.9008]
[1725761529671,7.71486047,128.22,128.18,12.2908]
[1725761533386,7.71486047,128.22,128.19,3.9005]
[1725761533568,3.81506047,128.22,128.19,12.2905]
[1725761534080,3.81506047,128.22,128.2,3.9003]
[1725761538984,5.2497,128.23,128.19,8.39]
[1725761538985,1.3502,128.23,128.19,8.39]
[1725761539390,5.16027198,128.23,128.2,3.9001]
[1725761540476,9.05977198,128.23,128.2,3.9001]
[1725761541285,5.2497,128.23,128.2,3.9001]
[1725761541988,5.17900044,128.23,128.2,3.9001]
[1725761544488,3.8992,128.24,128.21,3.8998]
[1725761544886,7.8341284,128.24,128.21,3.8998]
[1725761554403,3.8989,128.25,128.22,12.2897]
[1725761554595,2.6917,128.26,128.23,8.39]
[1725761554798,5.25711994,128.27,128.25,3.8986]
[1725761555600,1.3264,128.27,128.24,12.289]
[1725761556101,5.2246,128.27,128.24,3.899]
[1725761556299,5.2246,128.27,128.23,3.8993]
[1725761563310,5.2246,128.27,128.23,12.2893]
[1725761567404,5.2246,128.27,128.23,3.8993]
[1725761572914,5.2246,128.27,128.23,12.2893]
[1725761576020,3.8985,128.26,128.22,3.8995]
[1725761578230,3.8985,128.26,128.22,3.8996]
[1725761578419,12.387,128.27,128.18,152.3450288]
[1725761578625,12.387,128.27,128.19,12.3100468]
[1725761579017,3.899,128.25,128.21,3.8998]
[1725761581820,3.899,128.25,128.22,3.8997]
[1725761583436,3.899,128.25,128.21,3.8999]
[1725761586829,3.899,128.25,128.22,3.8997]
[1725761587938,3.8987,128.26,128.22,3.8997]
[1725761588237,3.997,128.27,128.21,8.39]
[1725761588828,3.8985,128.26,128.22,3.8997]
[1725761595036,3.8985,128.26,128.23,3.8994]
[1725761595340,7.8953,128.27,128.23,3.8994]
[1725761597842,7.8953,128.27,128.24,3.899]
[1725761598536,7.8953,128.27,128.23,3.8992]
[1725761604943,7.8953,128.27,128.21,8.39]
[1725761605744,7.8953,128.27,128.23,3.8992]
[1725761606746,7.8953,128.27,128.24,3.8991]
[1725761613458,1.3264,128.27,128.24,3.8991]
[1725761614549,1.3264,128.27,128.25,3.8987]
[1725761616953,3.98448701,128.28,128.25,3.8987]
[1725761634264,5.2566,128.3,128.25,8.39]
[1725761634461,5.26490158,128.3,128.26,8.39]
[1725761634666,2.629,128.33,128.3,3.8971]
[1725761634870,2.629,128.33,128.29,8.39]
[1725761635368,2.629,128.33,128.3,3.8971]
[1725761635967,2.629,128.33,128.27,3.8981]
[1725761636373,8.39,128.32,128.26,8.39]
[1725761636867,1.3721,128.31,128.26,8.39]
[1725761637075,5.2691,128.31,128.26,12.2883]
[1725761643467,5.2691,128.31,128.2,1.3576]
[1725761643468,8.39,128.29,128.2,1.3576]
[1725761643671,8.39,128.29,128.22,8.39]
[1725761644074,12.2877,128.29,128.23,8.39]
[1725761644681,12.2877,128.29,128.23,12.26281394]
[1725761645082,12.2877,128.29,128.25,3.8987]
[1725761648173,3.8979,128.28,128.24,3.899]
[1725761648579,6.6967,128.28,128.24,3.899]
[1725761649787,6.6967,128.28,128.2,1.3576]
[1725761649788,8.39,128.27,128.2,1.3576]
[1725761650083,3.95678964,128.26,128.21,3.9447001]
[1725761651287,7.85548964,128.26,128.22,3.8996]
[1725761653081,7.85548964,128.26,128.21,3.8999]
[1725761653277,3.8989,128.25,128.21,3.8999]
[1725761655985,12.34678964,128.26,128.17,1.2965]
[1725761656193,8.39,128.24,128.17,1.2965]
[1725761656389,8.39,128.23,128.17,8.39]
[1725761656593,9.7413,128.23,128.17,8.39]
[1725761657396,3.8999,128.22,128.19,3.9006]
[1725761659093,3.8999,128.22,128.18,156.2458288]
[1725761659884,9.7413,128.23,128.18,152.3450288]
[1725761661104,3.9002,128.21,128.18,152.3450288]
[1725761664909,3.9002,128.21,128.18,156.2459288]
[1725761673712,3.9002,128.21,128.18,152.3450288]
[1725761675821,3.9002,128.21,128.18,156.2459288]
[1725761677012,3.9002,128.21,128.18,3.9009]
[1725761677511,3.9003,128.2,128.17,3.9012]
[1725761678106,8.39,128.22,128.18,3.9008]
[1725761678107,3.9,128.21,128.18,3.9008]
[1725761681421,12.2898,128.22,128.19,3.9005]
[1725761684817,8.39,128.22,128.19,3.9005]